Cogmind - Beta 12 X1 @@@ ROGUE MODE // 2022.07.03 @ 20:23:14 Player: youngster Result: Destroyed by Y-54 Guardian with Gatling Laser Performance ------------- Evolutions (3) 1500 Regions Visited (13) 2600 Robots Destroyed (208) 1040 Value Destroyed (9377) 9377 Prototype IDs (36) 720 Alien Tech Used (0) 0 Bonus (3832) 3832 TOTAL SCORE: 19069 Bonus ------- High Alert Combat Kills 2078 Follower Combat Kills 213 Entered Garrisons 600 Used RIF Installer 1000 Aligned with FarCom 300 Friendly Fire -359 Cogmind --------- Core Integrity 0/700 Matter 19/300 Energy 310/310 System Corruption 5% Temperature Cool (18) Movement Treading (560) Ox5 Location -7/Garrison Parts ------- > --- POWER (1) -------- Reinforced Fission Core > --- PROPULSION (5) --- Light Treads Armored Wheel > --- UTILITY (4) ------ Huge Storage Unit Improved Launcher Guidance Computer Relay Coupler [Hunter] (10) > --- WEAPON (3) ------- Heavy Assault Cannon Heavy Mace > --- INVENTORY (25) --- Improved Deuterium Engine Improved Heavy Treads Improved Cooling System Compact Matter Pod (0) Experimental Sensor Array Improved Terrain Scanner Improved Launcher Guidance Computer Layered Medium Armor Plating Medium Reflective Plating Relay Coupler [NC] (33) Relay Coupler [NC] (33) Relay Coupler [Grunt] (31) High-powered Tractor Beam Improved EM Pulse Cannon Minigun Flak Gun 8R-AWN's Boregun 8R-AWN's Boregun Rocket Launcher Improved Datajack Gamma Bomb Trap Gamma Bomb Trap Peak State ------------ > --- POWER ------------ Improved Deuterium Engine > --- PROPULSION ------- Light Treads Light Treads Armored Treads Armored Treads Armored Wheel > --- UTILITY ---------- Huge Storage Unit Gravity Neutralizer Experimental Sensor Array Medium Reflective Plating > --- WEAPON ----------- Minigun 8R-AWN's Boregun 8R-AWN's Boregun > --- INVENTORY -------- Reinforced Fission Core Light Treads Light Treads Armored Wheel Compact Matter Pod Improved Terrain Scanner Advanced Terrain Scan Processor Improved Light Armor Plating Medium Reflective Plating Medium Reflective Plating Improved Shield Generator Relay Coupler [NC] Relay Coupler [Grunt] High-powered Tractor Beam Improved EM Pulse Cannon Improved Assault Rifle Gauss Rifle Flak Gun Heavy Assault Cannon Heavy Assault Cannon Rocket Launcher Improved Datajack Heavy Mace [Rating: 64] Favorites ----------- Power Cooled Ion Engine Engine Cooled Ion Engine Power Core Reinforced Fission Core Propulsion Light Treads Treads Light Treads Leg Advanced Myomer Leg Wheel Armored Wheel Utility Huge Storage Unit Device Improved Shield Generator Storage Huge Storage Unit Processor Improved Launcher Guidance Computer Hackware Relay Coupler [Hunter] Protection Light Armor Plating Weapon Minigun Energy Gun Medium Laser Energy Cannon Improved EM Pulse Cannon Ballistic Gun Minigun Ballistic Cannon Heavy Assault Cannon Launcher Rocket Launcher Impact Weapon Heavy Mace Special Melee Weapon Improved Datajack Build | -11 -10 -10 -9 -9 -9 -8 -8 -8 -8 -7 -7 -7 -7 ------- Run | Scr Mat Min Mat Min Exi Min Mat Gar Mat Fac Gar Fac Gar Slots Evolved 6 | . . . 2 . . . 2 . . 2 . . . Power . | . . . . . . . . . . . . . . Propulsion 3 | . . . 1 . . . 1 . . 1 . . . Utility 2 | . . . 1 . . . . . . 1 . . . Weapon 1 | . . . . . . . 1 . . . . . . Parts Attached 244 | 6 16 10 19 10 14 7 7 15 13 27 55 15 30 Power 8 | 1 3 . 1 . . . . . . . 2 . 1 Engine 5 | 1 2 . 1 . . . . . . . 1 . . Core 3 | . 1 . . . . . . . . . 1 . 1 Reactor . | . . . . . . . . . . . . . . Propulsion 61 | 2 5 2 7 1 4 1 2 5 7 4 11 5 5 Treads 45 | 2 3 1 6 . 2 . 1 4 6 3 10 4 3 Leg 1 | . . . . . . . 1 . . . . . . Wheel 15 | . 2 1 1 1 2 1 . 1 1 1 1 1 2 Hover . | . . . . . . . . . . . . . . Flight . | . . . . . . . . . . . . . . Utility 68 | 1 5 5 3 2 3 1 2 3 3 14 18 2 6 Device 20 | . 1 4 1 . 1 . . 1 . 4 6 2 . Storage 2 | 1 1 . . . . . . . . . . . . Processor 1 | . . . . . . . . . . . . . 1 Hackware 3 | . . . . . . . . . . 1 1 . 1 Protection 42 | . 3 1 2 2 2 1 2 2 3 9 11 . 4 Artifact . | . . . . . . . . . . . . . . Weapon 107 | 2 3 3 8 7 7 5 3 7 3 9 24 8 18 Energy Gun 5 | 2 2 1 . . . . . . . . . . . Energy Cannon 3 | . . . . . . . . . 1 . 1 1 . Ballistic Gun 55 | . 1 . 6 3 4 4 3 3 2 8 13 4 4 Ballistic Cannon 3 | . . . . . . . . . . . . . 3 Launcher 22 | . . 1 1 2 3 1 . 1 . . 6 2 5 Special Weapon . | . . . . . . . . . . . . . . Impact Weapon 15 | . . 1 1 2 . . . 3 . 1 3 1 3 Slashing Weapon . | . . . . . . . . . . . . . . Piercing Weapon . | . . . . . . . . . . . . . . Special Melee Weapon 4 | . . . . . . . . . . . 1 . 3 Unidentified Prototypes 7 | . 1 1 1 . 1 . 1 1 . . 1 . . Corrupted Parts 1 | . . 1 . . . . . . . . . . . System Corruption 9 | . . 9 . . . . . . . . . . . Parts Lost 33 | . 2 1 . 1 2 1 1 2 1 1 11 2 8 Power 3 | . . . . . . . . . . . 2 . 1 Propulsion 13 | . . . . . 1 1 . 2 . . 4 2 3 Utility 10 | . . . . 1 1 . . . . 1 4 . 3 Weapon 7 | . 2 1 . . . . 1 . 1 . 1 . 1 Highest Loss Streak 6 | . 1 1 . 1 2 1 1 1 1 1 6 1 4 To Critical Strikes 1 | . . . . . . . 1 . . . . . . Average Slot Usage (%) 97 | . 97 100 99 98 99 99 99 99 98 99 97 99 88 Engine 8 | . 11 14 11 11 11 11 9 9 9 7 5 7 1 Treads 25 | . 19 14 22 22 22 22 20 30 33 35 29 28 25 Wheel 8 | . 8 13 10 11 10 10 9 5 2 1 7 7 6 Device 3 | . . 11 11 7 . . . . . 1 3 7 3 Storage 9 | . 14 14 11 11 11 11 9 9 9 7 7 7 7 Protection 15 | . 12 2 11 13 20 22 18 17 18 21 16 14 10 Energy Gun 4 | . 21 27 7 . . . . . . . . . . Ballistic Gun 15 | . 6 . 13 20 12 21 27 23 25 21 19 21 7 Impact Weapon 1 | . . . 1 . 8 . . 3 . 1 . . 4 Naked Turns . | . . . . . . . . . . . . . . Heaviest Build 131 | 12 99 99 99 104 114 114 108 113 114 121 124 124 131 Greatest Support 144 | 40 40 16 66 16 66 46 10 89 86 106 83 24 144 Greatest Overweight (x) 11 | . 6 6 6 10 10 11 10 11 9 9 10 10 10 Average Overweight (x) 6 | . 3 5 5 6 8 8 10 5 3 2 7 8 7 Largest Inventory Capacity 25 | 8 25 25 25 25 25 25 25 25 25 25 25 25 25 Average Capacity 24 | 7 18 25 25 25 25 25 25 25 25 25 25 25 25 Most Carried 25 | 5 18 25 25 25 25 25 25 25 25 25 25 25 25 Average Carried 22 | 2 11 21 24 24 24 24 23 24 24 24 22 24 24 Final Capacity 25 | 8 25 25 25 25 25 25 25 25 25 25 25 25 25 Final Carried 25 | 4 18 25 25 25 25 24 25 25 25 25 25 25 23 Class Distribution -------------------- 56% | Mutant 18% | Scavenger-Tank 13% | Scavenger-Mutant 8% | Tank 3% | Bothacker-Mutant Dominant Class ---------------- Mutant | -10/Materials Mutant | -10/Mines Mutant | -9/Materials Mutant | -9/Mines Mutant | -9/Exiles Mutant | -8/Mines Tank | -8/Materials Scavenger-Mutant | -8/Garrison Tank | -8/Materials Scavenger-Tank | -7/Factory Scavenger-Tank | -7/Garrison Scavenger-Tank | -7/Factory Bothacker-Mutant | -7/Garrison Resources | -11 -10 -10 -9 -9 -9 -8 -8 -8 -8 -7 -7 -7 -7 ----------- Run | Scr Mat Min Mat Min Exi Min Mat Gar Mat Fac Gar Fac Gar Matter Collected 7295 | 235 336 95 469 238 214 376 169 598 546 755 1858 636 770 Remotely 438 | . . . . . . . . . . . 438 . . Salvage Created 8965 | 21 816 120 508 181 37 375 263 541 975 793 2553 1069 713 Parts 457 | 4 44 7 32 15 . 15 19 31 51 44 103 52 40 Haulers Intercepted 6 | . 2 . 2 . . . . . 1 . . 1 . Recyclers Shooed 9 | . 1 . 2 . . . . . 2 2 . 2 . Parts Field Recycled . | . . . . . . . . . . . . . . Retrieved Matter . | . . . . . . . . . . . . . . Parts Self-Destructed . | . . . . . . . . . . . . . . Prevented . | . . . . . . . . . . . . . . Kills | -11 -10 -10 -9 -9 -9 -8 -8 -8 -8 -7 -7 -7 -7 ------- Run | Scr Mat Min Mat Min Exi Min Mat Gar Mat Fac Gar Fac Gar Combat Hostiles Destroyed 168 | . 14 3 11 4 3 10 3 12 12 13 39 21 23 Melee 3 | . . . . . . . . . . 2 . . 1 Guns 119 | . 14 2 9 3 1 7 3 12 12 10 26 13 7 Cannons 6 | . . . . . . . . . . . . . 6 AOE 36 | . . 1 1 1 2 3 . . . . 13 7 8 Classes Destroyed 20 | 1 7 . 2 2 1 . 1 . . 2 2 1 1 Worker 3 | . . . . . . . . . . 1 . 2 . Builder 7 | . 2 1 . 1 . . . . 1 1 . 1 . Tunneler 4 | 1 1 . . 2 . . . . . . . . . Hauler 6 | . 2 . 2 . . . . . 1 . . 1 . Recycler 9 | . . . . 1 . 1 1 . 2 2 . 2 . Mechanic 1 | . 1 . . . . . . . . . . . . Operator 3 | . 1 . . . . . . . 1 . . 1 . Watcher 8 | . 3 . 3 . . . 1 . . 1 . . . Swarmer 40 | . 3 1 5 1 . 6 . 4 . . 11 . 9 Grunt 76 | . 11 2 2 2 1 3 . 5 7 8 17 11 7 Brawler 5 | . . . 1 . . 1 . . 1 . 1 1 . Duelist 5 | . . . . . . . . . . . 3 2 . Protector 1 | . . . . . . . . . . . . 1 . Sentry 23 | . . . 3 . . . 2 3 3 2 6 2 2 Demolisher 1 | . . . . 1 . . . . . . . . . Specialist 3 | . . . . . . . . . . . . . 3 Hunter 3 | . . . . . . . 1 . 1 . . . 1 Programmer 7 | . . . . . . . . . . 3 . 4 . Behemoth 2 | . . . . . . . . . . . 1 . 1 Assembled 3 | . . . . . 3 . . . . . . . . Thug 1 | . . . . . . . . . . . 1 . . Best Kill Streak 9 | 1 4 2 4 2 3 3 2 5 4 3 9 8 4 Combat Bots Only 9 | . 3 2 4 2 3 3 1 5 2 3 9 8 4 Max Kills in Single Turn 4 | 1 2 1 2 1 2 2 1 1 1 1 4 3 3 Gunslinging 1 | . . . . . . . . . . . 1 . . Exploded 4 | . . 1 1 1 1 2 . . . . 4 3 3 Melee 1 | . . . . . . . . . . 1 . . 1 Uniques/NPCs Destroyed . | . . . . . . . . . . . . . . Combat | -11 -10 -10 -9 -9 -9 -8 -8 -8 -8 -7 -7 -7 -7 -------- Run | Scr Mat Min Mat Min Exi Min Mat Gar Mat Fac Gar Fac Gar Damage Taken 10267 | . 673 89 330 261 515 309 234 409 437 949 3312 617 2132 Core 1044 | . 172 4 47 9 31 35 . 14 26 141 278 26 261 Absorbed by Shields 673 | . . . 79 78 . . . . . . 30 231 255 Redirected to Shielding 39 | . 36 . 3 . . . . . . . . . . Regen/Repaired (Parts) 166 | . . . 11 . . . . . 155 . . . . Core Remaining (%) 72 | 100 . 29 . . . 69 . . 92 . . . . Volleys Fired 521 | 2 73 11 39 25 19 26 14 24 33 41 113 48 53 Largest 3 | 2 2 2 2 2 2 2 3 3 3 3 3 3 3 Hottest 120 | 90 100 100 75 48 48 55 83 85 85 83 120 79 85 Shots Fired 1147 | 4 145 20 75 44 25 50 42 69 78 123 278 115 79 Gun 1058 | 4 145 19 73 42 13 48 42 69 78 123 258 107 37 Cannon 32 | . . . . . . . . . . . 7 1 24 Launcher 57 | . . 1 2 2 12 2 . . . . 13 7 18 Special . | . . . . . . . . . . . . . . Kinetic 938 | . 56 . 41 42 13 48 42 69 78 123 258 107 61 Thermal 119 | 2 66 19 32 . . . . . . . . . . Explosive 57 | . . 1 2 2 12 2 . . . . 13 7 18 Electromagnetic 33 | 2 23 . . . . . . . . . 7 1 . Robot Hit Streak 21 | 3 11 10 20 13 12 9 9 14 17 11 16 21 7 Robot Miss Streak 6 | 1 4 1 2 1 3 3 2 3 4 3 4 6 5 Penetration Max 2 | . . . . . . . 1 1 2 . 1 1 . Secondary Targets 13 | . 3 . . . . . . 2 . 1 3 4 . Max Gunslinging Chain 1 | . 1 . . . . . . 1 . 1 1 1 . Shots Hit Robots 777 | 3 98 16 61 35 9 32 25 33 47 89 205 80 44 Core Hits 461 | 1 44 9 26 12 11 13 7 16 24 29 151 83 35 Critical Kills 33 | . . . . . . 1 3 7 9 2 9 1 1 Critical Parts Destroyed 56 | . . . 3 . . 3 2 9 15 3 18 1 2 Critical Strikes 105 | 1 6 . 7 1 . 4 5 16 24 5 31 2 3 Burn 11 | 1 6 . 4 . . . . . . . . . . Destroy 89 | . . . 2 1 . 4 5 16 24 3 31 2 1 Smash 5 | . . . 1 . . . . . . 2 . . 2 Melee Attacks 75 | . . . 2 4 . . . 6 . 18 11 8 26 Impact 68 | . . . 2 4 . . . 6 . 18 6 8 24 Slashing . | . . . . . . . . . . . . . . Piercing . | . . . . . . . . . . . . . . Sneak Attacks 8 | . . . 1 . . . . . . 2 5 . . Combat Hostiles . | . . . . . . . . . . . . . . Follow-up Attacks . | . . . . . . . . . . . . . . Damage Inflicted 18793 | 52 1352 229 1023 706 617 750 390 721 1126 1921 4855 2828 2223 Guns 12450 | 52 1298 206 751 557 105 542 390 721 1097 1478 3366 1441 446 Cannons 541 | . . . . . . . . . . . 99 . 442 Explosions 4725 | . 46 23 120 149 512 208 . . . . 1375 1197 1095 Melee 978 | . . . 152 . . . . . . 404 . 182 240 Ramming 99 | . 8 . . . . . . . 29 39 15 8 . Kinetic 11540 | . 549 . 406 557 105 542 390 721 1097 1478 3366 1441 888 Thermal 1264 | 24 602 206 345 . . . . . . . . 87 . Explosive 4592 | . . 23 120 149 512 208 . . . . 1375 1110 1095 Electromagnetic 320 | 28 193 . . . . . . . . . 99 . . Impact 978 | . . . 152 . . . . . . 404 . 182 240 Slashing . | . . . . . . . . . . . . . . Piercing . | . . . . . . . . . . . . . . Highest Corruption 9 | . . 9 . . . . . . . . . 5 5 Average Corruption 4 | . . 9 . . . . . . . . . 3 5 Corruption Purged . | . . . . . . . . . . . . . . Corruption Blocked . | . . . . . . . . . . . . . . Effects 53 | . . . . . . . . . . . . 9 44 Message Errors 12 | . . . . . . . . . . . . 3 9 Matter Fused 12 | . . . . . . . . . . . . 1 11 Heat Flow Errors 7 | . . . . . . . . . . . . 1 6 Energy Discharges 6 | . . . . . . . . . . . . 1 5 Data Loss (minor) 9 | . . . . . . . . . . . . 2 7 Data Loss (major) 1 | . . . . . . . . . . . . . 1 Misfires 3 | . . . . . . . . . . . . . 3 Weapon Failures 3 | . . . . . . . . . . . . 1 2 Overload Shots . | . . . . . . . . . . . . . . Overflow Damage 441 | . . 4 123 34 8 1 . . . 126 . 19 126 Projectiles . | . . . . . . . . . . . . . . Explosions 92 | . . 4 3 34 8 1 . . . . . . 42 Melee 349 | . . . 120 . . . . . . 126 . 19 84 Knockbacks 7 | . . . . . . . . . . 2 . 2 3 Impact 6 | . . . . . . . . . . 2 . 2 2 Kinetic 1 | . . . . . . . . . . . . . 1 Secondary . | . . . . . . . . . . . . . . Self-Inflicted Damage 246 | . 1 39 . 33 43 . . . . . 94 . 36 Shots 9 | . . 1 . 1 2 . . . . . 4 . 1 Rammed 13 | . 4 . . . . . . . 3 2 3 1 . Targets Rammed 17 | . 4 . . . . . . . 5 4 3 1 . Kicked . | . . . . . . . . . . . . . . Crushed 4 | . . . . . . . . . 2 2 . . . Highest Temperature 319 | 60 150 318 105 10 10 100 78 126 95 189 319 212 277 Average Temperature 57 | 30 40 126 32 5 4 29 32 43 34 63 96 34 52 Received Heat Transfer 3080 | . 321 30 118 26 . 153 54 180 216 387 1107 159 329 Effects 6 | . . . . . . . . . . . 5 . 1 Energy Bleed 2 | . . . . . . . . . . . 2 . . Interference 4 | . . . . . . . . . . . 3 . 1 Siege Activations . | . . . . . . . . . . . . . . Robots Corrupted . | . . . . . . . . . . . . . . Combat Hostiles . | . . . . . . . . . . . . . . Parts Fried 5 | . . . 2 . . . . . . 3 . . . Impact Corruptions 11 | . . . 1 . . . . . . 5 . 2 3 Robots Melted 1 | . . . 1 . . . . . . . . . . Combat Hostiles 1 | . . . 1 . . . . . . . . . . Parts Melted 9 | . 3 3 2 . . . . . . . 1 . . Heat Transferred 4207 | 148 2122 592 1295 . . . . . . . . 50 . Parts Sabotaged . | . . . . . . . . . . . . . . Parts Stolen . | . . . . . . . . . . . . . . Parts Stripped . | . . . . . . . . . . . . . . Power Chain Reactions 1 | . 1 . . . . . . . . . . . . Missiles Intercepted . | . . . . . . . . . . . . . . Alert | -11 -10 -10 -9 -9 -9 -8 -8 -8 -8 -7 -7 -7 -7 ------- Run | Scr Mat Min Mat Min Exi Min Mat Gar Mat Fac Gar Fac Gar Peak Influence 2194 | 5 176 88 208 143 . 206 187 616 443 312 2194 1297 2039 Initial 1151 | . 3 13 . 26 . . 21 121 300 185 134 1151 907 Average 507 | 1 68 15 94 38 . 95 120 396 372 188 1126 1113 1361 Maximum Alert Level 5 | . . . 1 . . 1 . 2 2 1 5 4 5 Low Security (%) 50 | 100 100 100 94 100 . 84 100 13 . 64 3 . . Level 1 11 | . . . 5 . . 15 . 36 51 35 12 . . Level 2 6 | . . . . . . . . 50 48 . 5 . . Level 3 11 | . . . . . . . . . . . 24 44 33 Level 4 13 | . . . . . . . . . . . 29 55 35 Level 5 6 | . . . . . . . . . . . 23 . 30 High Security . | . . . . . . . . . . . . . . Max Security . | . . . . . . . . . . . . . . Squads Dispatched 20 | . 3 . 2 . . . 1 . 3 5 . 6 . Investigation 7 | . 2 . 1 . . . . . 1 2 . 1 . Extermination 6 | . . . . . . . . . . 3 . 3 . Reinforcement 5 | . 1 . 1 . . . 1 . 2 . . . . Assault 2 | . . . . . . . . . . . . 2 . Garrison . | . . . . . . . . . . . . . . Intercept . | . . . . . . . . . . . . . . Searches Triggered . | . . . . . . . . . . . . . . Construction Impeded 1 | . . . . . . . . . 1 . . . . Haulers Reinforced . | . . . . . . . . . . . . . . Active Scanning Responses . | . . . . . . . . . . . . . . Cargo Convoy Interrupts . | . . . . . . . . . . . . . . Stealth | -11 -10 -10 -9 -9 -9 -8 -8 -8 -8 -7 -7 -7 -7 --------- Run | Scr Mat Min Mat Min Exi Min Mat Gar Mat Fac Gar Fac Gar Distress Signals 8 | . 2 . 1 1 . . 1 . 3 . . . . Communications Jammed . | . . . . . . . . . . . . . . Distress Signals . | . . . . . . . . . . . . . . Times Spotted 273 | . 24 3 25 9 34 13 7 15 22 17 43 33 28 Peak Tracking Total 19 | . 5 2 5 19 10 4 3 5 6 3 7 11 6 Tactical Retreats 25 | . 1 . . 1 8 1 . 1 . 2 4 2 5 Traps | -11 -10 -10 -9 -9 -9 -8 -8 -8 -8 -7 -7 -7 -7 ------- Run | Scr Mat Min Mat Min Exi Min Mat Gar Mat Fac Gar Fac Gar Traps Triggered 14 | . . . . . . . . 4 2 . 3 . 5 Indirectly . | . . . . . . . . . . . . . . Trap Hack Attempts . | . . . . . . . . . . . . . . Triggered . | . . . . . . . . . . . . . . Disarmed . | . . . . . . . . . . . . . . Reprogrammed . | . . . . . . . . . . . . . . Reused . | . . . . . . . . . . . . . . Traps Extracted . | . . . . . . . . . . . . . . Installed . | . . . . . . . . . . . . . . Triggered . | . . . . . . . . . . . . . . Most Traps Carried 2 | . . . . . . . . . . . . . 2 Exploded 3 | . . . . . 3 . . . . . . . . Machines | -11 -10 -10 -9 -9 -9 -8 -8 -8 -8 -7 -7 -7 -7 ---------- Run | Scr Mat Min Mat Min Exi Min Mat Gar Mat Fac Gar Fac Gar Machines Disabled 30 | . . . . . 5 2 1 3 2 . 6 2 9 Max in Single Turn 2 | . . . . . 1 1 1 1 1 . 2 1 2 Garrison Relay 9 | . . . . . . . . 2 . . 4 . 3 Phase Generator 2 | . . . . . . . . . . . 1 . 1 Machines Sabotaged . | . . . . . . . . . . . . . . Garrisons Compromised . | . . . . . . . . . . . . . . Overloaded Fab Kills . | . . . . . . . . . . . . . . Hacking | -11 -10 -10 -9 -9 -9 -8 -8 -8 -8 -7 -7 -7 -7 --------- Run | Scr Mat Min Mat Min Exi Min Mat Gar Mat Fac Gar Fac Gar Machines Accessed 53 | . 9 3 7 . 2 . 2 2 8 6 4 9 1 Terminals 34 | . 7 1 4 . . . 1 2 5 2 4 7 1 Fabricators 2 | . . . . . . . . . . 2 . . . Repair Stations 4 | . . . 1 . . . . . 2 1 . . . Recycling Units 2 | . 2 . . . . . . . . . . . . Scanalyzers 4 | . . . 2 . . . . . 1 . . 1 . Garrison Access 3 | . . . . . . . 1 . . 1 . 1 . Total Hacks 130 | . 21 5 21 . 2 . 5 6 24 13 7 24 2 Successful 61 | . 12 3 10 . 2 . 2 1 9 6 4 12 . Failed 69 | . 9 2 11 . . . 3 5 15 7 3 12 2 Catastrophic 11 | . 3 . 1 . . . . . 2 1 1 3 . Database Lockouts . | . . . . . . . . . . . . . . Manual 42 | . 13 3 3 . 1 . 2 2 10 2 . 4 2 Terminals 87 | . 19 3 9 . . . 3 6 14 5 7 19 2 Fabricators 5 | . . . . . . . . . . 5 . . . Repair Stations 10 | . . . 2 . . . . . 6 2 . . . Recycling Units 2 | . 2 . . . . . . . . . . . . Scanalyzers 18 | . . . 10 . . . . . 4 . . 4 . Garrison Access 4 | . . . . . . . 2 . . 1 . 1 . Terminal Hacks 27 | . 9 3 2 . 2 . 1 . 1 . 4 5 . Record 1 | . . . . . 1 . . . . . . . . Part Schematic 1 | . 1 . . . . . . . . . . . . Robot Analysis 1 | . . 1 . . . . . . . . . . . Prototype ID Bank 2 | . 1 . . . . . 1 . . . . . . Open Door 3 | . . 2 . . . . . . . . 1 . . Branch Access Points 2 | . 1 . . . . . . . . . . 1 . Emergency Access Points 1 | . . . . . . . . . . . 1 . . Garrison Index 1 | . . . . . . . . . . . . 1 . Alert Level 2 | . 1 . . . . . . . 1 . . . . Unreport Threat 1 | . . . . . . . . . . . . 1 . Locate Traps 6 | . 3 . 1 . . . . . . . . 2 . Hauler Manifests 2 | . 1 . 1 . . . . . . . . . . Zone Layout 1 | . 1 . . . . . . . . . . . . Garrison Registry 1 | . . . . . . . . . . . 1 . . Patrol Navigation 1 | . . . . . . . . . . . 1 . . EX-Prototype ID Bank 1 | . . . . . 1 . . . . . . . . Fabricator Hacks 3 | . . . . . . . . . . 3 . . . Load Schematic 2 | . . . . . . . . . . 2 . . . Build 1 | . . . . . . . . . . 1 . . . Repair Station Hacks 8 | . . . 2 . . . . . 5 1 . . . Scan Component 5 | . . . 1 . . . . . 3 1 . . . Repair 3 | . . . 1 . . . . . 2 . . . . Recycling Unit Hacks . | . . . . . . . . . . . . . . Scanalyzer 10 | . . . 4 . . . . . 2 . . 4 . Insert Component 6 | . . . 3 . . . . . 1 . . 2 . Analyze 4 | . . . 1 . . . . . 1 . . 2 . Garrison Access Hacks 3 | . . . . . . . 1 . . 1 . 1 . Unlock Access 3 | . . . . . . . 1 . . 1 . 1 . Unauthorized Hacks 10 | . 3 . 2 . . . . 1 1 1 . 2 . Terminals 7 | . 1 . 2 . . . . 1 1 . . 2 . Track 4 | . 1 . 1 . . . . 1 1 . . . . Botnet 1 | . . . . . . . . . . . . 1 . Operators 2 | . . . 1 . . . . . . . . 1 . Fabricators 1 | . . . . . . . . . . 1 . . . Recompile 1 | . . . . . . . . . . 1 . . . Repair Stations . | . . . . . . . . . . . . . . Recycling Units 2 | . 2 . . . . . . . . . . . . Tunnel 2 | . 2 . . . . . . . . . . . . Scanalyzers . | . . . . . . . . . . . . . . Garrison Access . | . . . . . . . . . . . . . . Data Cores Recovered 2 | . . . . . . . . . 1 . . 1 . Used . | . . . . . . . . . . . . . . Hacking Detections 40 | . 7 1 6 . . . 2 2 7 5 2 7 1 Full Trace Events 6 | . . . 2 . . . . 1 1 1 . 1 . Feedback Events . | . . . . . . . . . . . . . . Feedback Blocked . | . . . . . . . . . . . . . . Robot Schematics Acquired . | . . . . . . . . . . . . . . Robots Built . | . . . . . . . . . . . . . . Authchips . | . . . . . . . . . . . . . . Time . | . . . . . . . . . . . . . . Total Robot Build Rating . | . . . . . . . . . . . . . . Part Schematics Acquired 4 | . 1 . . . . . . . 1 . . 2 . Parts Built 1 | . . . . . . . . . . 1 . . . Authchips 1 | . . . . . . . . . . 1 . . . Time 102 | . . . . . . . . . . 102 . . . Total Part Build Rating 8 | . . . . . . . . . . 8 . . . Parts Repaired 3 | . . . 1 . . . . . 2 . . . . Time 200 | . . . 136 . . . . . 64 . . . . Parts Recycled . | . . . . . . . . . . . . . . Recycled Matter . | . . . . . . . . . . . . . . Retrieved Matter . | . . . . . . . . . . . . . . Retrieved Components . | . . . . . . . . . . . . . . Parts Scanalyzed 3 | . . . 1 . . . . . . . . 2 . Part Schematics Acquired 3 | . . . . . . . . . 1 . . 2 . Parts Damaged 1 | . . . . . . . . . . . . 1 . Bothacking | -11 -10 -10 -9 -9 -9 -8 -8 -8 -8 -7 -7 -7 -7 ------------ Run | Scr Mat Min Mat Min Exi Min Mat Gar Mat Fac Gar Fac Gar Used RIF Installer 2 | . . . . . . . . . . . 1 . 1 Patrol Navigation 1 | . . . . . . . . . . . . . 1 Robots Hacked 1 | . . . . . . . . . . . . . 1 Non-combat . | . . . . . . . . . . . . . . Combat 1 | . . . . . . . . . . . . . 1 Robot Hacks Applied 1 | . . . . . . . . . . . . . 1 streamctrl_high 1 | . . . . . . . . . . . . . 1 Relay Couplers Released 32 | . . . . . . . . 7 . . 14 . 11 Machine Destruction 32 | . . . . . . . . 7 . . 14 . 11 Attached 2 | . . . . . . . . . . . 1 . 1 Fabnet Peak Effective % . | . . . . . . . . . . . . . . Robots Rewired 3 | . . . . . . . . . . . 3 . . Allies Hacked . | . . . . . . . . . . . . . . Hacks Repelled . | . . . . . . . . . . . . . . Allies | -11 -10 -10 -9 -9 -9 -8 -8 -8 -8 -7 -7 -7 -7 -------- Run | Scr Mat Min Mat Min Exi Min Mat Gar Mat Fac Gar Fac Gar Total Allies 14 | . . . . 6 . . . 2 . . 5 . 1 Largest Group 4 | . . . . 4 3 . . 2 . . 3 . 1 Highest-Rated Group 71 | . . . . 71 40 . . 51 . . 56 . 21 Highest-Rated Ally 31 | . . . . 31 16 . . 31 . . 31 . 21 Total Orders 8 | . . 1 . . 7 . . . . . . . . STAY 3 | . . . . . 3 . . . . . . . . EXPLORE 1 | . . . . . 1 . . . . . . . . RETURN 4 | . . 1 . . 3 . . . . . . . . Ally Attacks 100 | . . . . 19 33 . . 20 . . 28 . . Total Damage 1010 | . . . . 215 152 . . 331 . . 312 . . Kills 11 | . . . . 4 1 . . 3 . . 3 . . Allies Corrupted . | . . . . . . . . . . . . . . Allies Melted 1 | . . . . . . . . . . . 1 . . Intel | -11 -10 -10 -9 -9 -9 -8 -8 -8 -8 -7 -7 -7 -7 ------- Run | Scr Mat Min Mat Min Exi Min Mat Gar Mat Fac Gar Fac Gar Robot Analysis Total 1 | . . 1 . . . . . . . . . . . Derelict Logs Recovered 2 | . . 1 . 1 . . . . . . . . . Drone Launches 10 | . . 1 . . 9 . . . . . . . . Drone Recoveries 8 | . . 1 . . 7 . . . . . . . . Exploration | -11 -10 -10 -9 -9 -9 -8 -8 -8 -8 -7 -7 -7 -7 ------------- Run | Scr Mat Min Mat Min Exi Min Mat Gar Mat Fac Gar Fac Gar Turns Passed 19326 | 98 1962 1142 1424 1921 1860 1067 276 860 994 1522 2938 1530 1732 Spaces Moved 7820 | 52 964 574 626 813 765 463 98 303 344 521 1060 605 632 Core 4 | 4 . . . . . . . . . . . . . Treads 1629 | 48 383 . 2 . 46 1 . 175 220 408 232 . 114 Legs . | . . . . . . . . . . . . . . Wheels 6187 | . 581 574 624 813 719 462 98 128 124 113 828 605 518 Hover . | . . . . . . . . . . . . . . Flight . | . . . . . . . . . . . . . . Fastest Speed 50 | 50 160 175 175 190 135 190 230 230 225 225 150 150 150 Average Speed 209 | 151 171 177 183 196 221 213 230 237 234 238 232 215 225 Slowest Speed 320 | 160 190 190 240 230 320 320 230 245 242 242 245 240 240 Overloaded Moves . | . . . . . . . . . . . . . . Propulsion Burnouts . | . . . . . . . . . . . . . . Robots Hopped . | . . . . . . . . . . . . . . Cave-ins Triggered . | . . . . . . . . . . . . . . Exploration Rate (%) 57 | 4 96 99 49 97 71 99 15 43 46 11 94 21 61 Regions Visited 13 Branch Regions 4 Pre-discovered Areas 3 | . 2 . . . 1 . . . . . . . . Known Exits Taken 5 | . 1 . . . . 1 1 . . 1 . 1 . Unknown Exits Taken 6 | 1 . 1 1 1 1 . . . 1 . . . . Scrap Searched 5 | . . 1 . 2 . 2 . . . . . . . Spaces Dug 133 | . . 9 . 24 4 7 . 4 . 5 57 1 22 Terrain Destroyed 585 | . 3 9 27 24 37 22 . 7 11 5 182 37 221 Melee 16 | . . . . 2 . . . 3 . 5 3 1 2 Projectile 60 | . . . . . . 6 . 4 8 . 23 2 17 AOE 503 | . 3 9 27 22 37 16 . . . . 153 34 202 Terrain Rammed . | . . . . . . . . . . . . . . Walls Destroyed . | . . . . . . . . . . . . . . Machines Disabled . | . . . . . . . . . . . . . . Actions | -11 -10 -10 -9 -9 -9 -8 -8 -8 -8 -7 -7 -7 -7 --------- Run | Scr Mat Min Mat Min Exi Min Mat Gar Mat Fac Gar Fac Gar Total 9687 | 65 1119 671 840 1089 909 500 122 383 468 679 1307 724 811 Wait 731 | . 42 69 113 231 83 3 . 11 54 47 3 41 34 Move 7807 | 51 963 573 625 812 764 462 97 302 343 521 1057 605 632 Hop . | . . . . . . . . . . . . . . Pick Up 113 | 5 14 7 19 3 13 1 2 2 7 9 19 2 10 Fast Attach 34 | 6 5 1 2 . 1 . 1 1 3 . 9 1 4 Attach 43 | . 2 1 2 1 2 1 3 2 . 6 13 2 8 Detach 13 | . 2 1 . . 1 . . . . . 6 . 3 Swap 167 | . 9 8 15 9 11 6 3 12 10 21 33 12 18 Drop 119 | 1 5 . 23 4 15 1 2 3 13 12 23 4 13 Fire 521 | 2 73 11 39 25 19 26 14 24 33 41 113 48 53 Melee 75 | . . . 2 4 . . . 6 . 18 11 8 26 Ram 1 | . 1 . . . . . . . . . . . . Kick . | . . . . . . . . . . . . . . Crush 16 | . 3 . . . . . . . 5 4 3 1 . Escape Stasis 46 | . . . . . . . . 20 . . 16 . 10 Rewire 1 | . . . . . . . . . . . 1 . . Trap . | . . . . . . . . . . . . . . Miscellaneous . | . . . . . . . . . . . . . . Route ------- -11/Scrapyard -10/Materials (discovered 5 exits: *Mat x3 / *Min x2) -10/Mines (discovered 2 exits: *Mat x2) -9/Materials (discovered 4 exits: Mat x2 / [*Min x2]) -9/Mines (discovered 3 exits: *Mat x2 / *Exi) -9/Exiles (discovered 2 exits: [*Min x2]) -8/Mines (discovered 2 exits: *Mat x2) -8/Materials -8/Garrison -8/Materials -7/Factory (discovered 6 exits: [*Fac] / *Low x3 / Gar / Gar) -7/Garrison (discovered 4 exits: [*Fac x3] / *Fac) -7/Factory (discovered 6 exits: [*Fac] / *Low x3 / Gar / Gar) -7/Garrison (discovered 2 exits: [*Fac x2]) History --------- Turn | Location | Event 3 | -11/Scrapyard | Discovered new exit (range 16) 99 | -11/Scrapyard | Entered Materials 312 | -10/Materials | Build established: Mutant 350 | -10/Materials | Discovered new exit (range 16) 703 | -10/Materials | Discovered new exit (range 16) 1017 | -10/Materials | Discovered new exit (range 8) 1060 | -10/Materials | Core integrity fell below 50% 1099 | -10/Materials | Identified exit to Mines 1633 | -10/Materials | Discovered new exit (range 16) 2061 | -10/Materials | Entered Mines 2073 | -10/Mines | Met a Derelict bent on vengeance 2428 | -10/Mines | Discovered new exit (range 3) 2657 | -10/Mines | Discovered new exit (range 8) 2698 | -10/Mines | Met a Derelict who couldn't figure out how to use a Trap Extractor 2940 | -10/Mines | Found the Drone Emporium 2948 | -10/Mines | Found Prototype Device 2948 | -10/Mines | Identified Thief Drone Bay 2986 | -10/Mines | Found a damaged Exp. Sensor Array with a note attached 2989 | -10/Mines | Found Prototype Device 3004 | -10/Mines | Received a Rocket Launcher from a helpful Derelict 3068 | -10/Mines | Learned 8 Materials zone layouts 3203 | -10/Mines | Entered Materials 3203 | -9/Materials | Evolved 2 slots: Propulsion x1, Utility x1 3204 | -9/Materials | Identified exit to Materials 3516 | -9/Materials | Discovered new exit (range 8) 3719 | -9/Materials | Discovered new exit (range 15) 4216 | -9/Materials | Identified Exp. Sensor Array 4490 | -9/Materials | Repaired Faulty Exp. Sensor Array 4627 | -9/Materials | Entered Mines 4659 | -9/Mines | Assembled infested the area 4962 | -9/Mines | Discovered exit to Materials (range 5) 5027 | -9/Mines | Learned Materials stockpile data 5122 | -9/Mines | Joined a pair of Derelicts in attacking an 0b10 outpost 5213 | -9/Mines | Received a Mining Laser from a helpful Derelict 5360 | -9/Mines | Assisted by bots powering up and referring to "LRC-V3" 5605 | -9/Mines | A weapon hastily lodged in a ceiling crevice suddenly fell to the ground 5700 | -9/Mines | Deemed a non-threat by the Exiles lab entrance 5700 | -9/Mines | Discovered new exit (range 5) 5835 | -9/Mines | Discovered exit to Materials (range 9) 6548 | -9/Mines | Entered Exiles 6548 | -9/Exiles | Accompanied by 3 allies 6578 | -9/Exiles | Discovered new exit (range 15) 6730 | -9/Exiles | Met 8R-AWN 6769 | -9/Exiles | Met EX-HEX 6866 | -9/Exiles | Met EX-DEC 6907 | -9/Exiles | Learned location of Zion (-7) 7086 | -9/Exiles | Met EX-BIN 7119 | -9/Exiles | Aligned with FarCom system 7121 | -9/Exiles | Given EX-Vault access code 7174 | -9/Exiles | Opened EX-Vault 7227 | -9/Exiles | Warned to stay clear of 0b10 Research branches 7434 | -9/Exiles | Discovered new exit (range 14) 8035 | -9/Exiles | Attacked by the Exiles 8348 | -9/Exiles | Found Prototype Ballistic Gun 8348 | -9/Exiles | Identified 8R-AWN's Boregun 8408 | -9/Exiles | Entered Mines 8793 | -8/Mines | Discovered exit to Materials (range 15) 8958 | -8/Mines | Found 8R-AWN's Boregun 9025 | -8/Mines | Discovered exit to Materials (range 8) 9475 | -8/Mines | Entered Materials 9475 | -8/Materials | Evolved 2 slots: Propulsion x1, Weapon x1 9745 | -8/Materials | Identified exit to Garrison 9751 | -8/Materials | Entered Garrison 9918 | -8/Garrison | Rescued a captive Derelict 9927 | -8/Garrison | Rescued a captive Derelict 10026 | -8/Garrison | Garrison Relay disabled 10148 | -8/Garrison | Triggered checkpoint 10159 | -8/Garrison | Triggered checkpoint 10307 | -8/Garrison | Triggered checkpoint 10506 | -8/Garrison | Triggered checkpoint 10537 | -8/Garrison | Garrison Relay disabled 10585 | -8/Garrison | Discovered new exit (range 12) 10611 | -8/Garrison | Entered Materials 10675 | -8/Materials | Repaired Rocket Launcher 11495 | -8/Materials | Discovered new exit (range 4) 11575 | -8/Materials | Repaired Imp. Treads 11605 | -8/Materials | Entered Factory 11605 | -7/Factory | Evolved 2 slots: Propulsion x1, Utility x1 11775 | -7/Factory | Discovered new exit (range 13) 11908 | -7/Factory | Build established: Scavenger-Tank 12139 | -7/Factory | Discovered new exit (range 13) 12207 | -7/Factory | Fabricated Exp. Sensor Array? 13127 | -7/Factory | Identified exit to Garrison 13127 | -7/Factory | Entered Garrison 13190 | -7/Garrison | Triggered checkpoint 13396 | -7/Garrison | Rescued a captive Derelict 13396 | -7/Garrison | Rescued a captive Derelict 13559 | -7/Garrison | Triggered checkpoint 13560 | -7/Garrison | Triggered checkpoint 13631 | -7/Garrison | Destroyed 9 combat bots 13698 | -7/Garrison | Lost 6 parts (2n3u1w) 13713 | -7/Garrison | Destroyed 7 combat bots 13799 | -7/Garrison | Discovered exit to Factory (range 10) 13801 | -7/Garrison | Destroyed 7 combat bots 13836 | -7/Garrison | Triggered checkpoint 13891 | -7/Garrison | Discovered new exit (range 10) 13918 | -7/Garrison | Attempted to access garrison exit controls, blocked by remote lockdown 13940 | -7/Garrison | Triggered checkpoint 13997 | -7/Garrison | Lost 3 parts (1p1n1u) 14275 | -7/Garrison | Build established: Scavenger-Mutant 14312 | -7/Garrison | Triggered checkpoint 14383 | -7/Garrison | Phase Generator disabled 14395 | -7/Garrison | Discovered new exit (range 14) 14550 | -7/Garrison | Triggered checkpoint 14611 | -7/Garrison | Installed Relay Interface Framework 14658 | -7/Garrison | Garrison Relay disabled 15002 | -7/Garrison | Triggered checkpoint 15026 | -7/Garrison | Core integrity fell below 50% 15033 | -7/Garrison | Garrison Relay disabled 15074 | -7/Garrison | Discovered new exit (range 8) 15265 | -7/Garrison | Spotted B-75 Beast 15378 | -7/Garrison | Destroyed B-75 Beast 15389 | -7/Garrison | Build established: Scavenger-Tank 15458 | -7/Garrison | Discovered new exit (range 37) 15458 | -7/Garrison | Discovered new exit (range 73) 15458 | -7/Garrison | Discovered new exit (range 81) 15458 | -7/Garrison | Discovered exit to Factory (range 59) 15688 | -7/Garrison | Garrison Relay disabled 15955 | -7/Garrison | Garrison Relay disabled 16002 | -7/Garrison | Build established: Scavenger-Mutant 16065 | -7/Garrison | Entered Factory 16373 | -7/Factory | Discovered new exit (range 9) 16946 | -7/Factory | Identified exit to Lower Caves 17265 | -7/Factory | First assault squad dispatched 17381 | -7/Factory | Destroyed 8 combat bots 17595 | -7/Factory | Identified exit to Garrison 17595 | -7/Factory | Entered Garrison 17661 | -7/Garrison | Garrison Relay disabled 17676 | -7/Garrison | Triggered checkpoint 17742 | -7/Garrison | Triggered checkpoint 18262 | -7/Garrison | Triggered checkpoint 18305 | -7/Garrison | Garrison Relay disabled 18361 | -7/Garrison | Discovered new exit (range 10) 18474 | -7/Garrison | Build established: Mutant 18487 | -7/Garrison | Triggered checkpoint 18644 | -7/Garrison | Triggered checkpoint 18713 | -7/Garrison | Garrison Relay disabled 18751 | -7/Garrison | Discovered new exit (range 10) 18857 | -7/Garrison | Triggered checkpoint 18933 | -7/Garrison | Expanded RIF knowledge: Patrol Navigation 18954 | -7/Garrison | Spotted B-75 Beast 18994 | -7/Garrison | Core integrity fell below 20% 19011 | -7/Garrison | Build established: Bothacker-Mutant 19030 | -7/Garrison | Lost 4 parts (3n1w) 19153 | -7/Garrison | Destroyed B-75 Beast 19317 | -7/Garrison | Phase Generator disabled 19327 | -7/Garrison | Destroyed by Y-54 Guardian with Gatling Laser Last Messages --------------- 19241_ Acquired 5 matter. 19246_ Acquired 43 matter. 19250_ Acquired 2 matter. 19269_ System corrupted: Component data lost. 19290_ System corrupted: Heat flow error (+176). 19292_ The unstable cave ceiling collapses. 19295_ Acquired Smartbomb Launcher. 19296_ The unstable cave ceiling collapses. 19301_ S-27 Virus destroyed. 19301_ Destroyed VTOL Module. 19301_ S-27 Virus destroyed. 19301_ Destroyed Lgt. Nuclear Core. 19301_ S-27 Virus destroyed. 19307_ The unstable cave ceiling collapses. 19317_ Phase Generator explodes. 19318_ The unstable cave ceiling collapses. 19319_ Dropped Smartbomb Launcher. 19321_ Med. Reflective Plating destroyed. 19323_ The unstable cave ceiling collapses. 19326_ System corrupted: Hvy. Assault Cannon jammed. Map ----- +----------------------------------------------------+ | ????????????????????????????# # #?# # # # | | ????????????????????????????# ### # | | ????????????????????????????### =% | | ??????????????????????????????# [ | | ??????????????????????????????######## | | ?????????????????????????????????????#### # | | ??????????????????????????????????????# | | ??????????????????????????????????????# | | ??????????????????????????????????????# ! | | ??????????????????????????????????????# =% | | ??????????????????????? ???? ????### # [ | | ????????????????????? ?# #?????# # | | ???????????????????# #?????# | | ??????????????????## #?????# | | ??????????????????## # #####?# | | ??????????????????? ? ??# ##"""" | | ???????????????????# ## ## #### #????? | | ???????????????????# # ## ### # #????? | | ???????????????????# ?## # # # #????? | | ???????????????????# # ### #### #????? | | ???????????????????# ?# # #????? | | ?????????????????### ??## ## # #????? | | ???????????# ##### # #### # #### #????? | | ?????????? #????? | | ??????????? % != #????? | | ??????????????????#= %%[ @ = #????? | | ?????????????????## ;######; ###=*##????? | | ?????????????????# ##????# # ### ! #?????? | | ?????????????????# ??????# ####?# #?????? | | ?????????????????### ##??????# #????#" "#?????? | | ???????????????????# ????????# #????#" "#?????? | | ???????????????????#Y ?????????# #????#" "#?????? | | ??????????????????? %?????????# #????#"""#?????? | | ??????????????????## ??????????# #????#####?????? | | ???????????????????#???????????# #??????????????? | | ???????????????????????????????# ##?????????????? | | ???????????????????????????????# #?????????????? | | ???????????????????????????????# ########???????? | | ???????????????????????????????#* #???????? | | ??????????????????????????????## =###### #???????? | | ??????????????????????????????# ! #????# #???????? | | ??????????????????????????????#####????# #???????? | | ?????????????????????????????????????### ###?????? | | ?????????????????????????????????????#!! !!#?????? | | ????????????????????????????????????##! !#?????? | | ????????????????????????????????????# #?????? | | ????????????????????????????????????##[[ ]#?????? | | ?????????????????????????????????????#[[ ]]#?????? | | ?????????????????????????????????????#######?????? | | ?????????????????????????????????????????????????? | +----------------------------------------------------+ Best States ------------- Heat Dissipation 57 Energy Generation 19 Energy Capacity 310 Matter Stores 300 Matter Capacity 300 Sight Range 16 Robot Scan Range 20 Terrain Scan Range 16 Terrain Scan Density 10 Additional Mass Support 12 Armor Coverage 750 Resistance: KI 20 Resistance: TH 15 Core Shielding 20 Evasion (%) 40 Launcher Accuracy 30 Recoil Reduction 5 Relay Coupler Types 1 Relay Coupler Value 35 Authchip Count 1 Item Schematics ----------------- Huge Storage Unit | -10/Materials | Hacked Exp. Sensor Array | -8/Materials | Scanalyzed Adv. Terrain Scan Processor | -7/Factory | Scanalyzed Imp. Terrain Scanner | -7/Factory | Scanalyzed Robot Schematics ------------------ None Fabricated ------------ Exp. Sensor Array | x1 | -7/Factory | Authchip Alien Tech Used ----------------- None Achievements -------------- None Challenges ------------ None Game ------ Seed RiotIonStorage Manual? 0 Play Time 02:03:07 Cumulative 315.0 hours Start 2022.07.02 @ 03:17:22 End 2022.07.03 @ 20:23:14 Sessions 7 Manual Loads 0 Difficulty Rogue Special Mode None Game No. 139 Rogue 139 Adventurer 0 Explorer 0 Win Type - Total 8 Types 5/0/1/1/0/0/0/1/0 Lore% 88 Gallery% 90 Achievement% 70 Wizard Run 0 Options --------- ASCII 1 Keyboard 1 Movement Vi Keybinds 0 Fullscreen 2 Font 18/Cog Map View 76x50 Tactical HUD 1 Map Filters NONE Filters NONE Steam 0 RUN: 3c95c606-ed8f-4615-9d25-26b5c2b205b4